bitfinex/quotes_BTCUSD_20250206
["timestamp","ask_amount","ask_price","bid_price","bid_amount"]
[1738825796107,1.4237714,98252.0,98251.0,0.1141136]
[1738825796306,1.4417714,98252.0,98251.0,0.1141136]
[1738825797120,0.3858864,98251.0,98249.0,0.02030093]
[1738825797346,1.16780364,98251.0,98249.0,0.02030093]
[1738825797498,1.17520859,98251.0,98249.0,0.02030093]
[1738825798682,1.18420859,98251.0,98249.0,0.02030093]
[1738825799522,1.19320859,98251.0,98249.0,0.02030093]
[1738825800194,1.19320859,98251.0,98250.0,0.0829445]
[1738825800413,1.19320859,98251.0,98250.0,0.0732445]
[1738825801690,1.18420859,98251.0,98250.0,0.0732445]
[1738825802639,1.19320859,98251.0,98250.0,0.0733514]
[1738825802847,1.18420859,98251.0,98250.0,0.0733514]
[1738825803045,1.17520859,98251.0,98250.0,0.0733514]
[1738825803254,1.18420859,98251.0,98250.0,0.0733514]
[1738825803665,1.19320859,98251.0,98250.0,0.0733514]
[1738825805092,1.18420859,98251.0,98250.0,0.0733514]
[1738825805394,1.19320859,98251.0,98250.0,0.0733514]
[1738825806429,1.18420859,98251.0,98250.0,0.0733514]
[1738825806636,1.19320859,98251.0,98250.0,0.0733514]
[1738825807195,1.22494379,98251.0,98250.0,0.0733514]
[1738825809082,1.07227379,98251.0,98250.0,0.0733514]
[1738825809290,1.07979379,98251.0,98250.0,0.0733514]
[1738825811446,1.07979379,98251.0,98250.0,0.2260224]
[1738825811671,1.07979379,98251.0,98250.0,0.0733514]
[1738825811874,1.07979379,98251.0,98250.0,0.2260224]
[1738825812278,1.07227379,98251.0,98250.0,0.29725265]
[1738825812452,1.04805859,98251.0,98250.0,0.2260224]
[1738825812793,1.04805859,98251.0,98250.0,0.0733514]
[1738825813237,1.029055,98251.0,98250.0,0.0733514]
[1738825814400,1.0292795,98251.0,98250.0,0.0733514]
[1738825814602,1.0292795,98251.0,98249.0,0.0487]
[1738825814801,1.0292795,98251.0,98012.0,0.4]
[1738825814802,0.1,98241.0,98012.0,0.4]
[1738825815158,0.20990449,98241.0,98231.0,0.09150045]
[1738825815330,0.10250365,98240.0,98239.0,0.472988]
[1738825815702,0.10990427,98240.0,98239.0,0.472988]
[1738825816153,0.10990427,98240.0,98239.0,0.4935843]
[1738825816725,0.10990427,98240.0,98239.0,0.59608795]
[1738825817206,0.10990427,98240.0,98239.0,0.60628627]
[1738825817207,0.00740062,98240.0,98239.0,0.60628627]
[1738825817409,0.60920914,98251.0,98250.0,0.152671]
[1738825817561,0.5575973,98251.0,98250.0,0.152671]
[1738825817766,0.5575973,98251.0,98250.0,0.33825377]
[1738825818167,0.51713633,98251.0,98250.0,0.88015377]
[1738825818434,0.43966654,98251.0,98250.0,0.88015377]
[1738825818634,0.43966654,98251.0,98250.0,0.8901092]
[1738825818635,0.44866654,98251.0,98250.0,0.8901092]
[1738825818837,0.1,98272.0,98250.0,0.7374382]
[1738825819058,0.11002365,98271.0,98270.0,0.15264]
[1738825819229,0.11002365,98271.0,98270.0,0.22804]
[1738825820002,0.21002365,98271.0,98270.0,0.22804]
[1738825820613,0.21902365,98271.0,98270.0,0.22904]
[1738825820814,0.21902365,98271.0,98270.0,0.3177122]
[1738825821277,0.22802365,98271.0,98270.0,0.3187122]
[1738825821650,0.1,98257.0,98039.0,0.4]
[1738825821857,0.1,98257.0,98256.0,0.79706565]
[1738825822611,0.1,98257.0,98256.0,0.81792677]
[1738825822893,0.109,98257.0,98256.0,0.81892677]
[1738825823851,0.118,98257.0,98256.0,0.81992677]
[1738825824733,0.118,98257.0,98256.0,0.90002677]
[1738825824970,0.018,98257.0,98256.0,0.96842677]
[1738825825202,0.018,98257.0,98256.0,0.97842677]
[1738825826269,0.009,98257.0,98256.0,0.97742677]
[1738825826443,0.018,98257.0,98256.0,0.97842677]
[1738825826645,0.009,98257.0,98256.0,0.97742677]
[1738825826887,0.00752,98269.0,98268.0,0.228343]
[1738825827097,0.00752,98269.0,98268.0,0.26993428]
[1738825827229,0.01690769,98269.0,98268.0,0.26993428]
[1738825827430,0.00752,98269.0,98268.0,0.26993428]
[1738825828433,0.00752,98269.0,98268.0,0.27093428]
[1738825828675,0.01652,98269.0,98268.0,0.27093428]
[1738825829109,0.02552,98269.0,98268.0,0.27193428]
[1738825829635,0.01652,98269.0,98268.0,0.27093428]
[1738825830048,0.02552,98269.0,98268.0,0.27193428]
[1738825832859,0.02552,98269.0,98268.0,0.28220534]
[1738825839834,0.0257445,98269.0,98268.0,0.28220534]
[1738825840438,0.0257445,98269.0,98268.0,0.82410534]
[1738825843038,0.04476766,98269.0,98268.0,0.82410534]
[1738825843429,0.14727131,98269.0,98268.0,0.01227106]
[1738825843849,0.15675178,98269.0,98268.0,0.01227106]
[1738825844263,0.14775178,98269.0,98268.0,0.01127106]
[1738825844457,0.30039378,98269.0,98268.0,0.01127106]
[1738825844657,0.33083083,98269.0,98268.0,0.01127106]
[1738825844863,0.17818883,98269.0,98268.0,0.01127106]
[1738825845165,0.17818883,98269.0,98268.0,0.01027106]
[1738825845392,0.18718883,98269.0,98268.0,0.001]
[1738825845595,0.33983083,98269.0,98268.0,0.001]
[1738825846538,0.38833083,98269.0,98268.0,0.001]
[1738825846938,0.46963083,98269.0,98268.0,0.001]
[1738825849308,0.469496,98269.0,98268.0,0.001]
[1738825849720,0.316854,98269.0,98268.0,0.001]
[1738825849924,0.388196,98269.0,98268.0,0.001]
[1738825850037,0.235554,98269.0,98268.0,0.001]
[1738825850238,0.388196,98269.0,98268.0,0.001]
[1738825851438,0.235554,98269.0,98268.0,0.001]
[1738825852230,0.226554,98269.0,98268.0,0.001]
[1738825852630,0.235554,98269.0,98268.0,0.001]
[1738825852836,0.388196,98269.0,98268.0,0.001]
[1738825852977,0.379196,98269.0,98262.0,0.01304488]
[1738825853183,0.10250365,98268.0,98262.0,0.01304488]
[1738825853387,0.11196322,98268.0,98262.0,0.01304488]
[1738825854118,0.152648,98265.0,98262.0,0.01304488]
[1738825854313,0.26461318,98264.0,98262.0,0.01304488]
[1738825854501,0.152651,98263.0,98262.0,0.01304488]
[1738825854702,0.26267465,98263.0,98262.0,0.01304488]
[1738825854953,0.34457465,98263.0,98262.0,0.01304488]
[1738825855127,0.35403417,98263.0,98262.0,0.01304488]
[1738825855329,0.62223417,98263.0,98262.0,0.0001069]
[1738825855526,0.71799438,98263.0,98262.0,0.0001069]
[1738825855732,0.89973674,98263.0,98262.0,0.0001069]
[1738825856477,0.91773674,98263.0,98262.0,0.0001069]
[1738825856672,0.90873674,98263.0,98262.0,0.0001069]
[1738825857027,0.89973674,98263.0,98262.0,0.0001069]
[1738825857223,0.91773674,98263.0,98262.0,0.0001069]
[1738825858486,0.93043268,98263.0,98262.0,0.0001069]
[1738825861090,0.94443268,98263.0,98262.0,0.0001069]
[1738825861514,0.93047,98251.0,98238.0,0.0001069]
[1738825861638,1.19097365,98251.0,98238.0,0.0001069]
[1738825861874,1.20031927,98251.0,98238.0,0.0001069]
[1738825862673,1.24977948,98251.0,98238.0,0.0001069]
[1738825863210,1.25877948,98251.0,98238.0,0.01293417]
[1738825863406,1.24977948,98251.0,98238.0,0.01293417]
[1738825863813,1.26777948,98251.0,98238.0,0.01293417]
[1738825864027,1.25877948,98251.0,98238.0,0.01293417]
[1738825864432,1.24977948,98251.0,98238.0,0.01293417]
[1738825864645,1.25877948,98251.0,98238.0,0.01293417]
[1738825865037,1.25877948,98251.0,98238.0,0.0001069]
[1738825865408,1.26777948,98251.0,98238.0,0.0001069]
[1738825866366,1.25877948,98251.0,98238.0,0.0001069]
[1738825866538,1.26777948,98251.0,98238.0,0.0001069]
[1738825866904,1.25877948,98251.0,98238.0,0.0001069]
[1738825867313,1.26777948,98251.0,98238.0,0.0001069]
[1738825867569,1.28051455,98251.0,98238.0,0.0001069]
[1738825868228,1.78941455,98251.0,98238.0,0.0001069]
[1738825870310,1.81241455,98251.0,98238.0,0.0001069]
[1738825870485,1.82503586,98251.0,98250.0,3e-07]
[1738825871817,1.81603586,98251.0,98250.0,3e-07]
[1738825872026,1.78030079,98251.0,98250.0,3e-07]
[1738825872229,1.78930079,98251.0,98250.0,3e-07]
[1738825872380,1.78030079,98251.0,98250.0,3e-07]
[1738825872577,1.77130079,98251.0,98250.0,3e-07]
[1738825872807,1.78930079,98251.0,98250.0,3e-07]
[1738825873439,1.78030079,98251.0,98250.0,3e-07]
[1738825873687,1.78930079,98251.0,98250.0,3e-07]
[1738825875216,1.78930079,98251.0,98250.0,0.0001072]
[1738825877042,1.69757948,98251.0,98250.0,0.0001072]
[1738825877358,1.49620948,98251.0,98250.0,0.0001072]
[1738825877777,1.50372948,98251.0,98250.0,0.0001072]
[1738825877979,0.95372948,98251.0,98250.0,0.1527782]
[1738825878200,1.05372948,98251.0,98250.0,0.0001072]
[1738825878400,1.20639948,98251.0,98250.0,0.0001072]
[1738825878615,1.19739948,98251.0,98250.0,0.0001072]
[1738825878833,1.04472948,98251.0,98250.0,0.0001072]
[1738825879466,0.95372948,98251.0,98250.0,0.0001072]
[1738825879658,1.04472948,98251.0,98250.0,0.1527782]
[1738825879797,1.05372948,98251.0,98250.0,0.21213442]
[1738825880004,1.05372948,98251.0,98250.0,0.28983442]
[1738825881271,1.04620948,98251.0,98250.0,0.2304782]
[1738825881406,1.05372948,98251.0,98250.0,0.2304782]
[1738825887843,1.04620948,98251.0,98250.0,0.2304782]
[1738825888078,1.05372948,98251.0,98250.0,0.2304782]
[1738825888438,1.05395376,98251.0,98250.0,0.2304782]
[1738825888663,1.05395376,98251.0,98250.0,0.33298185]
[1738825889469,1.05395376,98251.0,98250.0,0.65328185]
[1738825891174,1.05395376,98251.0,98250.0,0.3981072]
[1738825891334,1.05395376,98251.0,98250.0,0.3204072]
[1738825891335,1.20662376,98251.0,98250.0,0.3204072]
[1738825891651,1.05395376,98251.0,98250.0,0.3204072]
[1738825892282,1.05395376,98251.0,98250.0,0.4730782]
[1738825892717,1.04460814,98251.0,98250.0,0.5557782]
[1738825893090,1.05457528,98251.0,98250.0,0.5557782]
[1738825896856,1.05433585,98251.0,98250.0,0.65828185]
[1738825903395,0.94681585,98251.0,98250.0,0.65828185]
[1738825903597,0.95433585,98251.0,98250.0,0.65828185]
[1738825907595,0.85207163,98251.0,98250.0,0.65828185]
[1738825907953,0.69407163,98251.0,98250.0,0.65828185]
[1738825908377,0.68655163,98251.0,98250.0,0.65828185]
[1738825908535,0.69407163,98251.0,98250.0,0.4730782]
[1738825909144,0.68507163,98251.0,98250.0,0.4730782]
[1738825909440,0.69407163,98251.0,98250.0,0.4730782]
[1738825909722,0.68507163,98251.0,98250.0,0.4730782]
[1738825910053,0.69407163,98251.0,98250.0,0.57558185]
[1738825910456,0.68507163,98251.0,98250.0,0.57558185]
[1738825910707,0.67607163,98251.0,98250.0,0.57558185]
[1738825910844,0.68307163,98251.0,98250.0,0.57558185]
[1738825911059,0.69207163,98251.0,98250.0,0.57558185]
[1738825911263,0.68307163,98251.0,98250.0,0.57558185]
[1738825911748,0.69207163,98251.0,98250.0,0.57558185]
[1738825912135,0.70107163,98251.0,98250.0,0.57558185]
[1738825912536,0.68307163,98251.0,98250.0,0.57558185]
[1738825912738,0.67607163,98251.0,98250.0,0.57558185]
[1738825913089,0.68407163,98251.0,98250.0,0.57558185]
[1738825913249,0.68407163,98251.0,98250.0,1.11748185]
[1738825913593,0.67607163,98251.0,98250.0,1.11748185]
[1738825913938,0.68555163,98251.0,98250.0,1.11748185]
[1738825914149,0.68403163,98251.0,98250.0,1.11748185]
[1738825914389,0.67603163,98251.0,98250.0,1.11748185]
[1738825914593,0.68503163,98251.0,98250.0,1.11748185]
[1738825914759,0.69303163,98251.0,98250.0,1.11748185]
[1738825917706,0.67240163,98251.0,98250.0,1.11748185]
[1738825919338,0.66259458,98251.0,98250.0,1.11748185]
[1738825920325,0.65511458,98251.0,98250.0,1.11748185]
[1738825920561,0.66259458,98251.0,98250.0,1.11748185]
[1738825926321,0.66259458,98251.0,98250.0,1.0149782]
[1738825928420,0.69312065,98251.0,98250.0,1.0149782]
[1738825934222,0.66259458,98251.0,98250.0,1.0149782]
[1738825938413,0.69313671,98251.0,98250.0,1.0149782]
[1738825940876,0.68565671,98251.0,98250.0,1.0149782]
[1738825941034,0.69313671,98251.0,98250.0,1.02985628]
[1738825943147,0.68565671,98251.0,98250.0,1.02985628]
[1738825943375,0.68565671,98251.0,98250.0,1.29885628]
[1738825943376,0.20252265,98251.0,98250.0,1.29885628]
[1738825943550,0.0002245,98262.0,98261.0,0.261654]
[1738825943750,0.0002245,98262.0,98261.0,1.2110834]
[1738825944570,0.0092245,98262.0,98261.0,1.2110834]
[1738825945497,0.0072245,98262.0,98261.0,1.2110834]
[1738825946687,0.0072245,98262.0,98261.0,1.22313035]
[1738825946860,0.0162245,98262.0,98261.0,1.22413035]
[1738825947187,0.0162245,98262.0,98261.0,1.37413035]
[1738825947305,0.0162245,98262.0,98261.0,1.42093035]
[1738825948371,0.0162245,98262.0,98261.0,1.44147816]
[1738825954607,1e-08,98269.0,98268.0,0.152643]
[1738825954786,1e-08,98269.0,98268.0,0.25616404]
[1738825954996,1e-08,98269.0,98268.0,0.26514665]
[1738825955611,1e-08,98269.0,98268.0,0.28814665]
[1738825956765,0.01500001,98269.0,98268.0,0.29014665]
[1738825957886,0.01500001,98269.0,98268.0,1.15234665]
[1738825958307,0.01500001,98269.0,98268.0,1.23154665]
[1738825959778,0.00600001,98269.0,98268.0,1.23054665]
[1738825959989,0.01400001,98269.0,98268.0,1.23154665]
[1738825960389,0.00800001,98269.0,98268.0,1.23054665]
[1738825960592,0.01300001,98269.0,98268.0,1.23154665]
[1738825976263,0.01300001,98269.0,98268.0,1.016843]
[1738825977453,0.03207915,98269.0,98268.0,1.016843]
[1738825979416,0.03207915,98269.0,98268.0,0.8642]
[1738825979589,0.03207915,98269.0,98268.0,1.016843]
[1738825981630,0.01300001,98269.0,98268.0,1.016843]
[1738825981867,0.01300001,98269.0,98268.0,0.96670365]
[1738825982071,0.09030001,98269.0,98268.0,0.96670365]
[1738825982405,0.09030001,98269.0,98268.0,0.8642]
[1738825982686,0.49414566,98269.0,98268.0,0.3223]
[1738825983083,0.49962804,98269.0,98268.0,0.3223]
[1738825983293,0.53141734,98269.0,98268.0,0.3223]
[1738825983493,0.49462804,98269.0,98268.0,0.3213]
[1738825983904,0.49262804,98269.0,98268.0,0.3213]
[1738825984247,0.50062804,98269.0,98268.0,0.3223]
[1738825985087,0.50062804,98269.0,98268.0,0.002]
[1738825985088,0.89242376,98269.0,98268.0,0.002]
[1738825985347,0.92417389,98269.0,98268.0,0.002]
[1738825985550,0.89242376,98269.0,98268.0,0.002]
[1738825985758,0.301251,98263.0,98251.0,0.0001068]
[1738825985925,0.82995465,98263.0,98251.0,0.0001068]
[1738825986126,0.86714583,98263.0,98251.0,0.0001068]
[1738825986388,0.8354187,98263.0,98251.0,0.0001068]
[1738825987021,0.9854187,98263.0,98251.0,0.0001068]
[1738825987290,0.9944187,98263.0,98251.0,0.0001068]
[1738825987640,0.9994187,98263.0,98251.0,0.0001068]
[1738825988291,1.0751187,98263.0,98251.0,0.0001068]
[1738825989744,1.0701187,98263.0,98251.0,0.0001068]
[1738825989943,1.0671187,98263.0,98251.0,0.0001068]
[1738825990368,1.0761187,98263.0,98262.0,0.0011068]
[1738825992291,1.0835987,98263.0,98262.0,0.0011068]
[1738825995846,1.3169987,98263.0,98262.0,0.0011068]
[1738825996261,1.34858427,98263.0,98262.0,0.0011068]
[1738825996464,1.39784801,98263.0,98262.0,0.0011068]
[1738825996638,1.38284801,98263.0,98262.0,0.0001068]
[1738825996793,1.38284801,98263.0,98262.0,0.0011068]
[1738825996794,1.39884801,98263.0,98262.0,0.0011068]
[1738825997195,1.90768801,98263.0,98262.0,0.0011068]
[1738825998838,1.90768801,98263.0,98235.0,0.2703]
[1738825999044,0.625293,98236.0,98235.0,0.2668346]
[1738825999216,0.625293,98236.0,98224.0,0.01212819]
[1738825999217,0.152699,98232.0,98227.0,0.2668346]
[1738825999436,0.76404265,98232.0,98227.0,0.2668346]
[1738825999592,0.76958936,98232.0,98227.0,0.2668346]
[1738826000460,0.77858936,98232.0,98227.0,0.2668346]
[1738826000659,0.77864126,98232.0,98227.0,0.2668346]
[1738826000854,0.827905,98232.0,98227.0,0.2668346]
[1738826002220,0.825905,98232.0,98227.0,0.2668346]
[1738826002458,0.834905,98232.0,98227.0,0.2668346]
[1738826002912,0.818905,98232.0,98227.0,0.2668346]
[1738826003148,0.825905,98232.0,98227.0,0.2668346]
[1738826003353,0.925905,98232.0,98227.0,0.2668346]
[1738826004191,0.934905,98232.0,98227.0,0.2668346]
[1738826005280,0.934905,98232.0,98224.0,0.0001069]
[1738826005281,1.209105,98232.0,98224.0,0.0001069]
[1738826005376,1.209105,98232.0,98231.0,0.0003068]
[1738826006055,1.202105,98232.0,98231.0,0.0003068]
[1738826006259,1.193105,98232.0,98231.0,0.0003068]
[1738826006742,1.202105,98232.0,98231.0,0.0003068]
[1738826007086,1.209105,98232.0,98231.0,0.0003068]
[1738826009406,1.209105,98232.0,98220.0,8e-07]
[1738826009407,0.847116,98221.0,98220.0,8e-07]
[1738826009526,2.42843965,98221.0,98220.0,8e-07]
[1738826009719,2.4341845,98221.0,98220.0,8e-07]
[1738826009971,2.48344824,98221.0,98220.0,8e-07]
[1738826010484,2.50754126,98221.0,98220.0,8e-07]
[1738826010678,2.52402126,98221.0,98220.0,8e-07]
[1738826010885,2.49370511,98221.0,98220.0,8e-07]
[1738826012155,2.50070511,98221.0,98220.0,8e-07]
[1738826012573,2.08470511,98221.0,98220.0,8e-07]
[1738826012916,2.51231982,98221.0,98220.0,8e-07]
[1738826013159,0.5,98197.0,98176.0,0.152786]
[1738826013367,1.84029765,98197.0,98177.0,0.2668346]
[1738826013707,1.84601992,98197.0,98177.0,0.2668346]
[1738826014248,1.89534263,98197.0,98177.0,0.2668346]
[1738826014451,1.89542751,98197.0,98177.0,0.2668346]
[1738826014794,1.90290751,98197.0,98177.0,0.2668346]
[1738826015653,0.302757,98195.0,98177.0,0.2668346]
[1738826015861,0.91410065,98195.0,98177.0,0.2668346]
[1738826016064,0.9198224,98195.0,98177.0,0.2668346]
[1738826016888,0.8170654,98195.0,98194.0,0.2777648]
[1738826017104,0.7335454,98195.0,98194.0,0.34629778]
[1738826017425,0.88986811,98195.0,98194.0,0.34629778]
[1738826017667,0.88986811,98195.0,98194.0,0.2777648]
[1738826017802,0.88986811,98195.0,98194.0,0.29843817]
[1738826018209,0.88986811,98195.0,98194.0,0.31005379]
[1738826018411,0.87538811,98195.0,98194.0,0.31005379]
[1738826018613,0.87386811,98195.0,98194.0,0.31005379]
[1738826018829,0.88986811,98195.0,98194.0,0.31005379]
[1738826019036,0.88986811,98195.0,98194.0,0.41255744]
[1738826019259,0.87386811,98195.0,98194.0,0.41255744]
[1738826019480,0.88886811,98195.0,98194.0,0.41255744]
[1738826019815,0.87986811,98195.0,98194.0,0.41255744]
[1738826020041,0.88286811,98195.0,98194.0,1.22129204]
[1738826020235,0.88786811,98195.0,98194.0,1.11878839]
[1738826020437,0.87886811,98195.0,98194.0,1.11878839]
[1738826021466,0.84349299,98195.0,98194.0,1.11878839]
[1738826021665,0.85249299,98195.0,98194.0,1.11878839]
[1738826022067,0.8245454,98195.0,98194.0,1.11878839]
[1738826022269,0.78051847,98195.0,98194.0,1.21701353]
[1738826022478,0.68551847,98195.0,98194.0,1.21701353]
[1738826023406,0.68551847,98195.0,98194.0,1.11878839]
[1738826024700,0.65512049,98195.0,98194.0,1.11878839]
[1738826025761,0.64756049,98195.0,98194.0,1.11878839]
[1738826025974,0.54756049,98195.0,98194.0,1.11878839]
[1738826028694,0.64756049,98195.0,98194.0,1.11878839]
[1738826029268,0.64756049,98195.0,98194.0,1.07248839]
[1738826029674,0.85006414,98195.0,98194.0,0.84113039]
[1738826029830,0.85006414,98195.0,98194.0,0.97321502]
[1738826030926,0.88052018,98195.0,98194.0,0.97321502]
[1738826031591,0.88052018,98195.0,98194.0,0.82045702]
[1738826031792,1.03327718,98195.0,98194.0,0.82045702]
[1738826031953,0.88052018,98195.0,98194.0,0.27855702]
[1738826033985,0.88052018,98195.0,98194.0,0.43131502]
[1738826034386,0.88052018,98195.0,98194.0,0.27855702]
[1738826034625,0.88052018,98195.0,98194.0,0.43131502]
[1738826035146,0.87479843,98195.0,98194.0,0.43131502]
[1738826035681,0.88076102,98195.0,98194.0,0.43131502]
[1738826036365,0.88076102,98195.0,98194.0,0.27855702]
[1738826036688,0.88076102,98195.0,98194.0,0.53381867]
[1738826036903,0.78076102,98195.0,98194.0,0.53381867]
[1738826037106,0.78832102,98195.0,98194.0,0.61511867]
[1738826037336,0.78836102,98195.0,98194.0,0.61511867]
[1738826037766,0.78836102,98195.0,98194.0,0.51261502]
[1738826038047,0.78836102,98195.0,98194.0,1.05451502]
[1738826038235,0.75790498,98195.0,98194.0,1.05451502]
[1738826039655,0.75790498,98195.0,98194.0,0.90175702]
[1738826039807,1.01066198,98195.0,98194.0,0.82045702]
[1738826040806,0.85790498,98195.0,98194.0,0.97321502]
[1738826041005,0.85790498,98195.0,98194.0,0.82045702]
[1738826042516,0.85790498,98195.0,98194.0,0.97321502]
[1738826044085,0.85790498,98195.0,98194.0,0.95911502]
[1738826044658,0.85790498,98195.0,98194.0,0.97060317]
[1738826046322,0.85290498,98195.0,98194.0,0.97060317]
[1738826046813,0.85890498,98195.0,98194.0,0.81784517]
[1738826047054,0.85890498,98195.0,98194.0,0.97060317]
[1738826047254,0.85290498,98195.0,98194.0,0.97060317]
[1738826047464,0.85890498,98195.0,98194.0,1.06968038]
[1738826047734,0.63980133,98195.0,98194.0,1.15008038]
[1738826047931,0.65636133,98195.0,98194.0,1.19698038]
[1738826048306,0.64736133,98195.0,98194.0,1.19698038]
[1738826048549,0.65036133,98195.0,98194.0,1.19698038]
[1738826048702,0.64136133,98195.0,98194.0,1.19698038]
[1738826048910,0.62236259,98195.0,98194.0,1.19698038]
[1738826049116,0.63136259,98195.0,98194.0,1.19698038]
[1738826049936,0.63836259,98195.0,98194.0,1.19698038]
[1738826050576,0.63136259,98195.0,98194.0,1.19698038]
[1738826050909,0.63736259,98195.0,98194.0,1.19698038]
[1738826051048,0.63736259,98195.0,98194.0,1.19708718]
[1738826052587,0.62980259,98195.0,98194.0,1.19708718]
[1738826055242,0.62980259,98195.0,98194.0,1.15018718]
[1738826055784,0.62980259,98195.0,98194.0,1.05110997]
[1738826056213,0.73230624,98195.0,98194.0,0.81795197]
[1738826056493,0.85138329,98195.0,98194.0,0.97070997]
[1738826057329,0.84538329,98195.0,98194.0,0.97070997]
[1738826057534,0.85138329,98195.0,98194.0,0.97070997]
[1738826058067,0.84538329,98195.0,98194.0,0.97070997]
[1738826058276,0.85138329,98195.0,98194.0,0.97070997]
[1738826058481,0.84238329,98195.0,98194.0,0.97070997]
[1738826058682,0.85138329,98195.0,98194.0,0.97070997]
[1738826058960,0.84238329,98195.0,98194.0,0.97070997]
[1738826059194,0.85138329,98195.0,98194.0,0.97070997]
[1738826059878,0.85138329,98195.0,98194.0,1.01791633]
[1738826060452,0.74887964,98195.0,98194.0,1.01791633]
[1738826060626,0.64887964,98195.0,98194.0,1.09561633]
[1738826063317,0.64910392,98195.0,98194.0,1.09561633]
[1738826068217,0.64910392,98195.0,98194.0,1.12861633]
[1738826068218,0.54910392,98195.0,98194.0,1.12861633]
[1738826068422,0.55268785,98195.0,98194.0,1.12861633]
[1738826068749,0.51846919,98195.0,98194.0,1.12861633]
[1738826069177,0.49039214,98195.0,98194.0,1.12861633]
[1738826069383,0.49939214,98195.0,98194.0,1.12861633]
[1738826069725,0.49339214,98195.0,98194.0,1.12861633]
[1738826070373,0.49839214,98195.0,98194.0,1.04840997]
[1738826070646,0.49839214,98195.0,98194.0,0.97070997]
[1738826071202,0.98105279,98195.0,98194.0,0.81795197]
[1738826071374,0.98105279,98195.0,98194.0,0.80646382]
[1738826071578,1.00012271,98195.0,98194.0,0.80646382]
[1738826072199,1.04762271,98195.0,98194.0,0.26456382]
[1738826072399,1.0794105,98195.0,98194.0,0.26456382]
[1738826073088,1.0744105,98195.0,98194.0,0.26456382]
[1738826073306,1.0724105,98195.0,98194.0,0.26456382]
[1738826074123,1.0744105,98195.0,98194.0,0.26456382]
[1738826074526,1.0814105,98195.0,98194.0,0.26456382]
[1738826074743,1.08121871,98195.0,98194.0,0.26456382]
[1738826075535,1.07221871,98195.0,98194.0,0.26456382]
[1738826075701,1.06214879,98195.0,98194.0,0.26456382]
[1738826076510,1.05514879,98195.0,98194.0,0.26456382]
[1738826076671,1.06114879,98195.0,98194.0,0.26456382]
[1738826078341,1.46114879,98195.0,98194.0,0.26456382]
[1738826078497,1.45214879,98195.0,98194.0,0.26456382]
[1738826078845,1.46114879,98195.0,98194.0,0.26456382]
[1738826079624,1.45514879,98195.0,98194.0,0.0001068]
[1738826079826,1.46970879,98195.0,98194.0,0.0001068]
[1738826081150,1.46214879,98195.0,98194.0,0.0001068]
[1738826081358,1.46970879,98195.0,98194.0,0.0001068]
[1738826082601,1.437921,98195.0,98194.0,0.0001068]
[1738826085137,1.437881,98195.0,98194.0,0.0001068]
[1738826087393,1.360481,98195.0,98194.0,0.0001068]
[1738826088407,1.312981,98195.0,98194.0,0.0001068]
[1738826090976,1.305461,98195.0,98194.0,0.0001068]
[1738826091329,1.312981,98195.0,98194.0,0.0001068]
[1738826091660,1.305461,98195.0,98194.0,0.0001068]
[1738826091855,1.312981,98195.0,98194.0,0.0001068]
[1738826092542,0.912981,98195.0,98194.0,0.0001068]
[1738826092654,1.012981,98195.0,98194.0,0.0001068]
[1738826095297,1.03199516,98195.0,98194.0,0.0001068]
[1738826096112,1.02447516,98195.0,98194.0,0.0001068]
[1738826096330,1.03211516,98195.0,98194.0,0.0001068]
[1738826096559,1.02913607,98195.0,98194.0,0.0001068]
[1738826099081,1.12913607,98195.0,98194.0,0.0001068]
[1738826099696,0.97637907,98195.0,98194.0,0.0001068]
[1738826100052,1.12913607,98195.0,98194.0,0.0001068]
[1738826100457,1.12149607,98195.0,98194.0,0.0001068]
[1738826100831,1.12913607,98195.0,98194.0,0.0001068]
[1738826101215,0.71873907,98195.0,98194.0,0.18710118]
[1738826101385,0.72637907,98195.0,98194.0,0.18710118]
[1738826102252,0.70736491,98195.0,98194.0,0.1528648]
[1738826102610,0.69836491,98195.0,98194.0,0.1528648]
[1738826102995,0.70036491,98195.0,98194.0,0.1528648]
[1738826103296,0.70736491,98195.0,98194.0,0.41732182]
[1738826103697,0.70036491,98195.0,98194.0,0.41732182]
[1738826103897,0.69272491,98195.0,98194.0,0.51982547]
[1738826104192,0.60486126,98195.0,98194.0,1.14262547]
[1738826104422,0.60486126,98195.0,98194.0,1.15705602]
[1738826108219,0.60486126,98195.0,98194.0,1.05455237]
[1738826109062,0.60486126,98195.0,98194.0,1.07509007]
[1738826111692,0.59586126,98195.0,98194.0,1.07509007]
[1738826112096,0.59786126,98195.0,98194.0,1.07509007]
[1738826112484,0.60386126,98195.0,98194.0,1.07509007]
[1738826112647,0.60386126,98195.0,98194.0,1.17759372]
[1738826118492,0.58886126,98195.0,98194.0,1.17759372]
[1738826118689,0.59786126,98195.0,98194.0,1.17759372]
[1738826118894,0.59486126,98195.0,98194.0,1.17759372]
[1738826119340,0.47559726,98195.0,98194.0,1.17759372]
[1738826119492,0.47559726,98195.0,98194.0,1.21059372]
[1738826119715,0.47559726,98195.0,98194.0,1.26049372]
[1738826119959,0.46959726,98195.0,98194.0,1.26049372]
[1738826120354,0.45402526,98195.0,98194.0,1.26049372]
[1738826121475,0.44902526,98195.0,98194.0,1.26049372]
[1738826121787,0.44002526,98195.0,98194.0,1.26049372]
[1738826122004,0.45302526,98195.0,98194.0,1.26049372]
[1738826122199,0.45302526,98195.0,98194.0,1.36299737]
[1738826122333,0.16806824,98195.0,98194.0,1.25854035]
[1738826122536,0.12879976,98195.0,98194.0,1.25854035]
[1738826122736,0.12223233,98195.0,98194.0,1.25854035]
[1738826122934,0.01322428,98195.0,98194.0,1.25854035]
[1738826123135,0.0076,98211.0,98210.0,0.152733]
[1738826123341,0.0076,98211.0,98210.0,0.16847025]
[1738826125013,0.0126,98211.0,98210.0,0.16947025]
[1738826125414,0.0126,98211.0,98210.0,0.18357682]
[1738826125591,0.0216,98211.0,98210.0,0.18457682]
[1738826126365,0.0216,98211.0,98210.0,0.01657052]
[1738826126569,0.0216,98211.0,98210.0,0.16930352]
[1738826126979,0.0216,98211.0,98210.0,1.05186554]
[1738826127589,0.014,98211.0,98210.0,1.05186554]
[1738826127790,0.02156,98211.0,98210.0,1.05186554]
[1738826128006,0.02156,98211.0,98210.0,1.15436919]
[1738826129030,0.02156,98211.0,98210.0,1.13400717]
[1738826129439,0.02156,98211.0,98210.0,0.98127417]
[1738826129658,0.02827206,98211.0,98210.0,1.13400717]
[1738826129900,0.02156,98211.0,98210.0,1.13400717]
[1738826132437,0.02178428,98211.0,98210.0,1.13400717]
[1738826144065,0.02174428,98211.0,98210.0,1.13400717]
[1738826145575,0.01422428,98211.0,98210.0,1.13400717]
[1738826145767,0.02174428,98211.0,98210.0,1.21590717]
[1738826147409,0.01422428,98211.0,98210.0,1.21590717]
[1738826147624,0.02174428,98211.0,98210.0,1.21590717]
[1738826149816,0.01422428,98211.0,98210.0,1.21590717]